Cogmind - Beta 9.6 @@@ ROGUE MODE // 2020.07.02 @ 07:54:20 Player: GGOBC-004 Result: Destroyed by S-10 Pest with Light Assault Rifle Performance ------------- Evolutions (0) 0 Regions Visited (1) 200 Robots Destroyed (11) 55 Value Destroyed (170) 170 Prototype IDs (0) 0 Alien Tech Used (0) 0 Bonus (0) 0 TOTAL SCORE: 425 Bonus ------- None Cogmind --------- Core Integrity 0/250 Matter 300/300 Energy 100/100 System Corruption 1% Temperature Cool (0) Movement Core (50) Location -10/Materials Parts ------- > --- POWER (1) -------- (None) > --- PROPULSION (2) --- (None) > --- UTILITY (2) ------ Targeting Computer Targeting Computer > --- WEAPON (2) ------- (None) > --- INVENTORY (4) ---- Aluminum Leg Aluminum Leg Targeting Computer Peak State ------------ > --- POWER ------------ Ion Engine > --- PROPULSION ------- Wheel Compact Wheel > --- UTILITY ---------- Small Storage Unit Small Storage Unit > --- WEAPON ----------- EM Pulse Gun Assault Rifle > --- INVENTORY -------- Aluminum Leg Aluminum Leg Light Assault Rifle [Rating: 7] Favorites ----------- Power Ion Engine Engine Ion Engine Propulsion Compact Wheel Leg Aluminum Leg Wheel Compact Wheel Utility Targeting Computer Storage Small Storage Unit Processor Targeting Computer Weapon Light Assault Rifle Energy Gun EM Pulse Gun Ballistic Gun Light Assault Rifle Build | -11 -10 ------- Run | Scr Mat Slots Evolved . | . . Power . | . . Propulsion . | . . Utility . | . . Weapon . | . . Parts Attached 18 | 8 10 Power 2 | 2 . Engine 2 | 2 . Core . | . . Reactor . | . . Propulsion 6 | 2 4 Treads . | . . Leg 2 | . 2 Wheel 4 | 2 2 Hover . | . . Flight . | . . Utility 4 | 2 2 Device . | . . Storage 2 | 2 . Processor 2 | . 2 Hackware . | . . Protection . | . . Artifact . | . . Weapon 6 | 2 4 Energy Gun 3 | 1 2 Energy Cannon . | . . Ballistic Gun 3 | 1 2 Ballistic Cannon . | . . Launcher . | . . Special Weapon . | . . Impact Weapon . | . . Slashing Weapon . | . . Piercing Weapon . | . . Special Melee Weapon . | . . Unidentified Prototypes . | . . Parts Lost 8 | . 8 Power 1 | . 1 Propulsion 2 | . 2 Utility . | . . Weapon 5 | . 5 Highest Loss Streak 5 | . 5 Average Slot Usage (%) 79 | . 79 Engine 13 | . 13 Wheel 15 | . 15 Storage 10 | . 10 Processor 17 | . 17 Energy Gun 6 | . 6 Ballistic Gun 14 | . 14 Naked Turns . | . . Heaviest Build 17 | 17 17 Greatest Support 26 | 26 26 Greatest Overweight (x) . | . . Average Overweight (x) . | . . Largest Inventory Capacity 8 | 8 8 Average Capacity 5 | 5 5 Most Carried 8 | 4 8 Average Carried 3 | 1 3 Final Capacity 8 | 8 4 Final Carried 3 | 3 3 Class Distribution -------------------- 100% | Mutant Dominant Class ---------------- Mutant | -10/Materials Resources | -11 -10 ----------- Run | Scr Mat Matter Collected 365 | 248 117 Remotely . | . . Salvage Created 336 | 100 236 Parts 29 | 4 25 Haulers Intercepted . | . . Recyclers Shooed 1 | . 1 Parts Field Recycled . | . . Retrieved Matter . | . . Parts Self-Destructed . | . . Prevented . | . . Kills | -11 -10 ------- Run | Scr Mat Combat Hostiles Destroyed 7 | . 7 Melee 1 | . 1 Guns 6 | . 6 Classes Destroyed 5 | 1 4 Worker 1 | . 1 Recycler 1 | 1 . Watcher 2 | . 2 Swarmer 5 | . 5 Grunt 2 | . 2 Best Kill Streak 5 | 1 5 Combat Bots Only 3 | . 3 Max Kills in Single Turn 1 | 1 1 Gunslinging . | . . Exploded . | . . Melee 1 | . 1 Uniques/NPCs Destroyed . | . . Combat | -11 -10 -------- Run | Scr Mat Damage Taken 848 | 15 833 Core 251 | . 251 Absorbed by Shields . | . . Core Remaining (%) 100 | 100 . Volleys Fired 83 | 4 79 Largest 2 | 1 2 Hottest 60 | 20 60 Shots Fired 91 | 4 87 Gun 91 | 4 87 Cannon . | . . Launcher . | . . Special . | . . Kinetic 84 | 4 80 Thermal 7 | . 7 Explosive . | . . Electromagnetic . | . . Robot Hit Streak 16 | 2 16 Robot Miss Streak 5 | 1 5 Penetration Max . | . . Secondary Targets 1 | . 1 Max Gunslinging Chain 1 | . 1 Shots Hit Robots 33 | 3 30 Core Hits 24 | 2 22 Critical Hits . | . . Critical Kills . | . . Critical Parts Destroyed . | . . Melee Attacks . | . . Impact . | . . Slashing . | . . Piercing . | . . Sneak Attacks . | . . Combat Hostiles . | . . Follow-up Attacks . | . . Damage Inflicted 411 | 84 327 Guns 351 | 49 302 Cannons . | . . Explosions . | . . Melee . | . . Ramming 60 | 35 25 Kinetic 284 | 49 235 Thermal 67 | . 67 Explosive . | . . Electromagnetic . | . . Impact . | . . Slashing . | . . Piercing . | . . Highest Corruption 1 | 1 1 Average Corruption 1 | 1 1 Corruption Purged . | . . Effects 2 | 1 1 Message Errors 1 | . 1 Data Loss (minor) 1 | 1 . Overload Shots . | . . Overflow Damage . | . . Projectiles . | . . Explosions . | . . Melee . | . . Knockbacks . | . . Impact . | . . Kinetic . | . . Secondary . | . . Self-Inflicted Damage 25 | 15 10 Shots . | . . Rammed 22 | 13 9 Targets Rammed 22 | 13 9 Kicked . | . . Crushed . | . . Highest Temperature 64 | . 64 Average Temperature 28 | . 28 Received Heat Transfer 87 | . 87 Siege Activations . | . . Robots Corrupted . | . . Combat Hostiles . | . . Parts Fried . | . . Impact Corruptions . | . . Robots Melted . | . . Combat Hostiles . | . . Parts Melted . | . . Heat Transferred 150 | . 150 Parts Sabotaged . | . . Parts Stolen . | . . Parts Stripped . | . . Power Chain Reactions . | . . Missiles Intercepted . | . . Alert | -11 -10 ------- Run | Scr Mat Peak Influence 124 | 5 124 Average Influence 50 | 1 59 Maximum Alert Level . | . . Low Security (%) 100 | 100 100 Level 1 . | . . Level 2 . | . . Level 3 . | . . Level 4 . | . . Level 5 . | . . High Security . | . . Max Security . | . . Squads Dispatched . | . . Investigation . | . . Extermination . | . . Reinforcement . | . . Assault . | . . Garrison . | . . Intercept . | . . Construction Impeded . | . . Haulers Reinforced . | . . Stealth | -11 -10 --------- Run | Scr Mat Distress Signals 2 | . 2 Communications Jammed . | . . Distress Signals . | . . Times Spotted 12 | . 12 Peak Tracking Total 4 | . 4 Tactical Retreats . | . . Traps | -11 -10 ------- Run | Scr Mat Traps Triggered . | . . Indirectly . | . . Trap Hack Attempts . | . . Triggered . | . . Disarmed . | . . Reprogrammed . | . . Reused . | . . Traps Extracted . | . . Installed . | . . Triggered . | . . Machines | -11 -10 ---------- Run | Scr Mat Machines Disabled . | . . Max in Single Turn . | . . Machines Sabotaged . | . . Garrisons Compromised . | . . Overloaded Fab Kills . | . . Fab Network Shutdowns . | . . Hacking | -11 -10 --------- Run | Scr Mat Machines Accessed 3 | . 3 Terminals . | . . Fabricators . | . . Repair Stations 1 | . 1 Recycling Units 2 | . 2 Scanalyzers . | . . Garrison Access . | . . Total Hacks 8 | . 8 Successful 5 | . 5 Failed 3 | . 3 Catastrophic . | . . Database Lockouts . | . . Manual 1 | . 1 Terminals . | . . Fabricators . | . . Repair Stations 3 | . 3 Recycling Units 5 | . 5 Scanalyzers . | . . Garrison Access . | . . Terminal Hacks . | . . Fabricator Hacks . | . . Repair Station Hacks 2 | . 2 Scan Component 1 | . 1 Repair 1 | . 1 Recycling Unit Hacks 3 | . 3 Retrieve Matter 1 | . 1 Retrieve Components 2 | . 2 Scanalyzer . | . . Garrison Access Hacks . | . . Unauthorized Hacks . | . . Terminals . | . . Fabricators . | . . Repair Stations . | . . Recycling Units . | . . Scanalyzers . | . . Garrison Access . | . . Data Cores Recovered . | . . Used . | . . Hacking Detections 2 | . 2 Full Trace Events . | . . Feedback Events . | . . Feedback Blocked . | . . Robot Schematics Acquired . | . . Robots Built . | . . Matter . | . . Time . | . . Total Robot Build Rating . | . . Part Schematics Acquired . | . . Parts Built . | . . Matter . | . . Time . | . . Total Part Build Rating . | . . Parts Repaired 1 | . 1 Time 26 | . 26 Parts Recycled . | . . Recycled Matter . | . . Retrieved Matter 71 | . 71 Retrieved Components 11 | . 11 Parts Scanalyzed . | . . Part Schematics Acquired . | . . Parts Damaged . | . . Bothacking | -11 -10 ------------ Run | Scr Mat Used RIF Installer . | . . Robots Hacked . | . . Non-combat . | . . Combat . | . . Robot Hacks Applied . | . . Relay Couplers Released . | . . Robots Rewired . | . . Allies Hacked . | . . Hacks Repelled . | . . Allies | -11 -10 -------- Run | Scr Mat Total Allies . | . . Largest Group . | . . Highest-Rated Group . | . . Highest-Rated Ally . | . . Total Orders . | . . Ally Attacks . | . . Total Damage . | . . Kills . | . . Allies Corrupted . | . . Allies Melted . | . . Intel | -11 -10 ------- Run | Scr Mat Robot Analysis Total . | . . Derelict Logs Recovered . | . . Drone Launches . | . . Drone Recoveries . | . . Exploration | -11 -10 ------------- Run | Scr Mat Turns Passed 504 | 83 421 Spaces Moved 255 | 59 196 Core 27 | 26 1 Treads . | . . Legs . | . . Wheels 228 | 33 195 Hover . | . . Flight . | . . Fastest Speed 50 | 50 50 Average Speed 91 | 72 96 Slowest Speed 100 | 90 100 Overloaded Moves . | . . Propulsion Burnouts . | . . Robots Hopped . | . . Cave-ins Triggered . | . . Exploration Rate (%) 21 | 4 38 Regions Visited 1 Branch Regions . Pre-discovered Areas . | . . Known Exits Taken . | . . Unknown Exits Taken 1 | 1 . Scrap Searched . | . . Spaces Dug . | . . Terrain Destroyed . | . . Melee . | . . Projectile . | . . AOE . | . . Actions | -11 -10 --------- Run | Scr Mat Total 455 | 97 358 Wait 47 | . 47 Move 254 | 58 196 Hop . | . . Pick Up 20 | 12 8 Fast Attach 1 | . 1 Attach 16 | 7 9 Detach 4 | . 4 Swap 1 | 1 . Drop 7 | 2 5 Fire 83 | 4 79 Melee . | . . Ram 22 | 13 9 Kick . | . . Crush . | . . Escape Stasis . | . . Rewire . | . . Trap . | . . Miscellaneous . | . . Route ------- -11/Scrapyard -10/Materials (discovered 1 exit: [*Min]) History --------- Turn | Location | Event 2 | -11/Scrapyard | Met Revision 17 13 | -11/Scrapyard | Discovered new exit (range 15) 84 | -11/Scrapyard | Entered Materials 211 | -10/Materials | Lost 3 parts (1n2w) 302 | -10/Materials | Build established: Mutant 332 | -10/Materials | Discovered new exit (range 12) 445 | -10/Materials | Repaired Sml. Laser 485 | -10/Materials | Core integrity fell below 50% 501 | -10/Materials | Core integrity fell below 20% 505 | -10/Materials | Destroyed by S-10 Pest with Light Assault Rifle Last Messages --------------- Repair station completes Sml. Laser repairs. Acquired Sml. Laser. Ion Engine destroyed. Sml. Laser destroyed. Com. Wheel destroyed. Lgt. Assault Rifle destroyed. G-47 Trooper destroyed. S-10 Pest destroyed. R-06 Scavenger collects Aluminum Leg. R-06 Scavenger collects Lgt. Assault Rifle. Lgt. Assault Rifle destroyed. Slammed into R-06 Scavenger. Acquired 8 matter. Slammed into S-10 Pest. Destabilizing: Core damaged (-2). Slammed into S-10 Pest. Destabilizing: System interference. Targeting Computer temporarily disabled. Slammed into S-10 Pest. S-10 Pest destroyed. Map ----- +----------------------------------------------------+ | ??????????????????????????????# # | | ??????????????????????????????# "T" # # | | ??????????????????????????????############### ^# | | ???????????????????????????????#""""""??????# + | | ???????????????????????????????#" |"! "?????# # | | ???????????????????????????#####" "###### # | | ?????????????????????????? # | | ?????????????????????????? < # | | ?????????????????????????? # | | ???????????????????????????????# ##+######## | | ???????????????????????????????#######?# #?# | | ???????????????????????????????????????# #?? | | ???????????????????????????????????????# """" #?? | | ???????????????????????????????????????# """" #?? | | ???????????????????????????????????????# """" #?? | | ????????????????????????????????######## #?? | | ????????????????????????????????# !# ! !! #?? | | ????????????????????????????????# +%! % #?? | | ????????????????????????????????# """ # "Y" #?? | | ????????????????????????######### """ # """ #?? | | ????????????????????????# # """ # #?? | | ????????????????????????# + #####+###?? | | ????????????????????????# # """ #???# #???? | | ????????????????????????+% + """ #???# #???? | | ????????????????????????#*= =*# """ #???# #???? | | ????????????????????????#@%[ %%=# #???# #???? | | ????????????????????????#%%%%%% # """ #???? ????? | | ????????????????????????### s ### R" #???? ????? | | ??????????????????????????# #?# """ #???? ????? | | ??????????????????????????# #?# #???? ????? | | ??????????????????????????# #?########???? ????? | | ??????????????????????????# #????????????? ????? | | ??????????????????????????# #????????????? ????? | | ??????????????????????????# #??????????????????? | | ??????????????????????????# #??????????????????? | | ??????????????????????????# #??????????????????? | | ??????????????????????????# #??????????????????? | | ?????????????????????????? ??????????????????? | | ?????????????????????????? ??????????????????? | | ?????????????????????????? ??????????????????? | | ?????????????????????????? ??????????????????? | | ?????????????????????????# ??????????????????? | | ???????????????????????????###???????????????????? | | ?????????????????????????????????????????????????? | | | | | | | | | | | | | +----------------------------------------------------+ Best States ------------- Heat Dissipation 25 Energy Generation 10 Energy Capacity 250 Matter Stores 300 Matter Capacity 300 Sight Range 16 Terrain Scan Density 10 Evasion (%) 50 Targeting Accuracy 10 Item Schematics ----------------- None Robot Schematics ------------------ None Fabricated ------------ Nothing Alien Tech Used ----------------- None Achievements -------------- None Challenges ------------ None Game ------ Seed MolecularSalvageShifter Manual? 0 Play Time 00:13:03 Cumulative 8.9 hours Start 2020.07.02 @ 07:44:24 End 2020.07.02 @ 07:54:20 Sessions 1 Manual Loads 0 Difficulty Rogue Special Mode None Game No. 5 Rogue 5 Adventurer 0 Explorer 0 Win Type - Total 0 Types 0/0/0/0/0/0/0 Lore% 14 Gallery% 19 Achievement% 17 Wizard Run 0 Options --------- ASCII 0 Keyboard 0 Movement Numpad Keybinds 0 Fullscreen 2 Font 18/TerminusBold Map View 76x50 Tactical HUD 0 Map Filters NONE Filters NONE Steam 1 RUN: 55ff882c-5860-4280-9550-3caa6094cfca